lending/lending_fUSD_20251107
["ID","MTS","AMOUNT","RATE_DAILY","PERIOD"]
[393372150,1762540237736,-283.63867003,0.00015,2]
[393372153,1762540237835,-640.1481628,0.00015,2]
[393372159,1762540238017,-1033.38489934,0.00015,2]
[393372160,1762540239234,-162.64025443,0.00015,2]
[393372167,1762540239619,-395.472,0.00015,2]
[393372168,1762540239677,-10412.26296,0.00015,2]
[393372169,1762540239730,-2090.40897658,0.00015,2]
[393372170,1762540240157,-305.0000025,0.00015,2]
[393372171,1762540240169,-2032.83345461,0.00015,2]
[393372186,1762540240909,-166.66440493,0.00015,2]
[393372198,1762540242601,-12815.49376189,0.00015,2]
[393372201,1762540242611,-250.0,0.0001567,2]
[393372202,1762540242621,-200.0,0.0001634,2]
[393372203,1762540242631,-319.04446285,0.0001636,2]
[393372204,1762540242640,-420.0,0.00016416,2]
[393372205,1762540242650,-420.0,0.00016416,2]
[393372206,1762540242660,-300.0,0.00016484,2]
[393372207,1762540242671,-300.0,0.00016484,2]
[393372208,1762540242681,-197.18308,0.00016484,2]
[393372209,1762540242690,-300.0,0.00016484,2]
[393372210,1762540242700,-338.05954966,0.00016484,2]
[393372211,1762540242710,-2500.0,0.00016484,2]
[393372212,1762540242721,-195.0,0.00016484,2]
[393372213,1762540242731,-26071.34911846,0.00016494,2]
[393372214,1762540242743,-4023.3368239,0.00016494,2]
[393372215,1762540242756,-251.38405764,0.00016494,2]
[393372216,1762540242766,-149.89594236,0.00016499,2]
[393372217,1762540242781,-150.10405764,0.00016499,2]
[393372218,1762540242791,-401.47669237,0.00016499,2]
[393372219,1762540242804,-927.35336414,0.00016499,2]
[393372220,1762540242819,-351.16994349,0.00016499,2]
[393372221,1762540242829,-250.0,0.000165,2]
[393372222,1762540242839,-155.5539763,0.000165,2]
[393372223,1762540242849,-195.0,0.000165,2]
[393372224,1762540242859,-150.0,0.000165,2]
[393372225,1762540242869,-200.0,0.000165,2]
[393372226,1762540242880,-500.0,0.00016973,2]
[393372227,1762540242889,-500.0,0.00016973,2]
[393372228,1762540242900,-500.0,0.00016973,2]
[393372229,1762540242910,-500.0,0.00016973,2]
[393372230,1762540242920,-453.81631707,0.00016973,2]
[393372231,1762540243165,-46.18368293,0.00016973,2]
[393372232,1762540243175,-289.23840535,0.00016973,2]
[393372236,1762540246275,-60.30249218,0.00016973,2]
[393372237,1762540246348,-150.45910247,0.00016973,2]
[393372238,1762540246358,-500.0,0.00016973,2]
[393372239,1762540246368,-500.0,0.00016973,2]
[393372240,1762540246378,-359.1291185,0.00016989,2]
[393372241,1762540246387,-500.0,0.00016989,2]
[393372242,1762540246396,-342.4319465,0.00016989,2]
[393372243,1762540246408,-157.5680535,0.00016989,2]
[393372244,1762540246418,-500.0,0.00016989,2]
[393372245,1762540246427,-500.0,0.00016989,2]
[393372246,1762540246436,-500.0,0.00016989,2]
[393372247,1762540246446,-500.0,0.00016989,2]
[393372248,1762540246455,-500.0,0.00016989,2]
[393372249,1762540246465,-500.0,0.00016989,2]
[393372250,1762540246474,-500.0,0.00016989,2]
[393372251,1762540246484,-500.0,0.00016989,2]
[393372252,1762540246494,-500.0,0.00016989,2]
[393372253,1762540246505,-500.0,0.00016989,2]
[393372254,1762540246515,-500.0,0.00016989,2]
[393372255,1762540246525,-500.0,0.00016989,2]
[393372256,1762540246538,-254.34467249,0.00016989,2]
[393372257,1762540246549,-500.0,0.00016989,2]
[393372258,1762540246559,-500.0,0.00016989,2]
[393372259,1762540246568,-500.0,0.00016989,2]
[393372260,1762540246577,-500.0,0.00016989,2]
[393372261,1762540246587,-500.0,0.00016989,2]
[393372262,1762540246597,-500.0,0.00016989,2]
[393372263,1762540246607,-202.44003714,0.00016989,2]
[393372264,1762540246616,-11153.43137602,0.0001699,2]
[393372273,1762540246698,-222.58635225,0.0001699,2]
[393372274,1762540246709,-4716.83218707,0.0001699,2]
[393372321,1762540247528,-1442.68635184,0.0001699,2]
[393372322,1762540247542,-387.82092303,0.0001699,2]
[393372324,1762540247719,-1408.09065475,0.0001699,2]
[393372325,1762540247731,-3082.0518,0.0001699,2]
[393372326,1762540247742,-445.06603811,0.0001699,2]
[393372327,1762540247754,-310.02901883,0.0001699,2]
[393372328,1762540247771,-313.71000017,0.0001699,2]
[393372336,1762540333091,558.51498012,0.00039001,30]
[393372379,1762540593986,-165.58,0.00015863,2]
[393372413,1762540833319,1617.23,8.33e-05,2]
[393372414,1762540833551,1617.23,8.752e-05,2]
[393372415,1762540833751,1617.23,9.173e-05,2]
[393372416,1762540833963,1617.23,9.594e-05,2]
[393372417,1762540834300,1617.23,0.00010015,2]
[393372418,1762540834535,1582.7,0.00010437,2]
[393372419,1762540834563,34.53,0.00010437,2]
[393372420,1762540834779,1617.23,0.00010858,2]
[393372421,1762540835052,1617.23,0.00011279,2]
[393372422,1762540835269,1617.23,0.00011701,2]
[393372423,1762540835488,1617.23,0.00012122,2]
[393372424,1762540835719,1617.23,0.00012543,2]
[393372425,1762540835937,1617.23,0.00012964,2]
[393372426,1762540836173,262.1,0.00013386,2]
[393372427,1762540836199,1355.13,0.00013386,2]
[393372428,1762540836387,1617.23,0.00013807,2]
[393372429,1762540836595,1617.23,0.00014228,2]
[393372430,1762540836831,1617.23,0.00014649,2]
[393372431,1762540837033,1617.23,0.00015071,2]
[393372432,1762540837266,1617.23,0.00015492,2]
[393372438,1762540905126,-1617.23,0.00015913,2]
[393372441,1762540931811,999.0,0.00016213,3]
[393372447,1762541202080,-500.0,0.00016046,2]
[393372448,1762541202426,2833.8,0.00016,2]
[393372473,1762541431803,-269.16883687,0.00016234,2]
[393372474,1762541431816,-28.19116313,0.00016288,2]
[393372475,1762541431857,-324.17623762,0.00016288,2]
[393372476,1762541431869,-583.17001,0.00016288,2]
[393372477,1762541431880,-655.679994,0.00016288,2]
[393372478,1762541431915,-353.79355953,0.00016288,2]
[393372484,1762541437833,-563.94852852,0.00016288,2]
[393372486,1762541437849,-906.5305072,0.00016288,2]
[393372487,1762541437863,-168.6694928,0.00016334,2]
[393372488,1762541437885,-1448.5605072,0.00016334,2]
[393372489,1762541437896,-165.58,0.00016419,2]
[393372490,1762541437908,-1005.033099,0.000165,2]
[393372491,1762541437922,-461.52,0.000165,2]
[393372492,1762541437946,-1215.27537834,0.000165,2]
[393372493,1762541437963,-767.86770662,0.00016789,2]
[393372494,1762541437980,-432.13229338,0.00016789,2]
[393372495,1762541437993,-300.0,0.00016789,2]
[393372496,1762541438005,-264.3120508,0.0001679,2]
[393372497,1762541438016,-2608.44808018,0.0001679,2]
[393372498,1762541438026,-1764.498559,0.0001679,2]
[393372499,1762541438045,-252.46568544,0.0001679,2]
[393372500,1762541438062,-533.16506907,0.0001679,2]
[393372501,1762541438080,-388.08730739,0.0001679,2]
[393372502,1762541438093,-740.47257415,0.0001679,2]
[393372552,1762541439748,-32.13043306,0.0001679,2]
[393372553,1762541439761,-309.5644,0.0001679,2]
[393372554,1762541439775,-251.05918326,0.00016872,2]
[393372555,1762541439790,-459.4095232,0.00016872,2]
[393372556,1762541439810,-489.53129354,0.00016872,2]
[393372557,1762541439824,-500.0,0.00016873,2]
[393372558,1762541439836,-500.0,0.00016873,2]
[393372559,1762541439848,-500.0,0.00016873,2]
[393372560,1762541439860,-500.0,0.00016873,2]
[393372561,1762541439872,-500.0,0.00016873,2]
[393372562,1762541439884,-500.0,0.00016873,2]
[393372563,1762541439896,-500.0,0.00016873,2]
[393372564,1762541439908,-500.0,0.00016889,2]
[393372565,1762541439924,-500.0,0.00016889,2]
[393372566,1762541439936,-500.0,0.00016889,2]
[393372567,1762541439947,-500.0,0.00016889,2]
[393372568,1762541439960,-500.0,0.00016889,2]
[393372569,1762541439972,-500.0,0.00016889,2]
[393372570,1762541439984,-500.0,0.00016889,2]
[393372571,1762541439995,-500.0,0.00016889,2]
[393372572,1762541440007,-500.0,0.00016889,2]
[393372573,1762541440019,-500.0,0.00016889,2]
[393372574,1762541440031,-500.0,0.00016889,2]
[393372575,1762541440042,-500.0,0.00016889,2]
[393372576,1762541440054,-500.0,0.00016889,2]
[393372577,1762541440066,-500.0,0.00016889,2]
[393372578,1762541440078,-243.83803024,0.00016889,2]
[393372579,1762541440089,-500.0,0.00016889,2]
[393372580,1762541440100,-500.0,0.00016889,2]
[393372581,1762541440114,-500.0,0.00016889,2]
[393372582,1762541440125,-500.0,0.00016889,2]
[393372583,1762541440137,-500.0,0.00016889,2]
[393372584,1762541440149,-500.0,0.00016889,2]
[393372585,1762541440160,-500.0,0.00016889,2]
[393372586,1762541440171,-500.0,0.00016889,2]
[393372587,1762541440182,-500.0,0.00016889,2]
[393372589,1762541440193,-500.0,0.00016889,2]
[393372591,1762541440204,-500.0,0.00016889,2]
[393372593,1762541440215,-500.0,0.00016889,2]
[393372595,1762541440225,-500.0,0.00016889,2]
[393372598,1762541440237,-500.0,0.00016889,2]
[393372600,1762541440248,-500.0,0.00016889,2]
[393372602,1762541440259,-500.0,0.00016889,2]
[393372604,1762541440269,-500.0,0.00016889,2]
[393372606,1762541440281,-500.0,0.00016889,2]
[393372607,1762541440295,-500.0,0.00016889,2]
[393372609,1762541440306,-500.0,0.00016889,2]
[393372611,1762541440317,-500.0,0.00016889,2]
[393372612,1762541440329,-500.0,0.00016889,2]
[393372613,1762541440341,-500.0,0.00016889,2]
[393372614,1762541440351,-500.0,0.00016889,2]
[393372615,1762541440362,-300.0,0.00016889,2]
[393372616,1762541440374,-420000.0,0.0001689,2]
[393372617,1762541440385,-1000.0,0.0001689,2]
[393372618,1762541440396,-2608.44808016,0.00016913,2]
[393372619,1762541440407,-264.3120508,0.00016949,2]
[393372620,1762541440419,-4556.37,0.00016971,2]
[393372621,1762541440431,-9999.99,0.00016971,2]
[393372622,1762541440443,-14065.86,0.00016971,2]
[393372623,1762541440456,-504.75986535,0.00016973,2]
[393372624,1762541440467,-638.23167784,0.00016973,2]
[393372625,1762541440478,-500.0,0.00016973,2]
[393372626,1762541440490,-500.71108766,0.00016973,2]
[393372627,1762541440502,-168.23721633,0.00016973,2]
[393372628,1762541440513,-500.0,0.00016973,2]
[393372629,1762541440525,-500.0,0.00016973,2]
[393372630,1762541440538,-500.0,0.00016973,2]
[393372631,1762541440549,-500.0,0.00016973,2]
[393372632,1762541440560,-500.0,0.00016973,2]
[393372633,1762541440573,-500.0,0.00016973,2]
[393372634,1762541440585,-500.0,0.00016973,2]
[393372635,1762541440596,-503.03575028,0.00016973,2]
[393372636,1762541440608,-500.0,0.00016973,2]
[393372637,1762541440619,-486.35532093,0.00016973,2]
[393372638,1762541440630,-244.0805128,0.00016975,2]
[393372639,1762541440641,-500.0,0.00016975,2]
[393372640,1762541440651,-267.32001155,0.00016975,2]
[393372641,1762541440663,-538.992534,0.00016975,2]
[393372642,1762541440685,-502.51,0.00016975,2]
[393372643,1762541440702,-165.58,0.00016976,2]
[393372644,1762541440716,-37011.8162975,0.00016976,2]
[393372645,1762541440725,-151.0,0.0001698,2]
[393372646,1762541440735,-151.0,0.0001698,2]
[393372647,1762541440744,-151.0,0.0001698,2]
[393372648,1762541440753,-151.0,0.0001698,2]
[393372649,1762541440763,-151.0,0.0001698,2]
[393372650,1762541440772,-151.0,0.0001698,2]
[393372651,1762541440782,-151.0,0.0001698,2]
[393372652,1762541441060,-151.0,0.0001698,2]
[393372653,1762541441078,-151.0,0.0001698,2]
[393372654,1762541441091,-151.0,0.0001698,2]
[393372655,1762541441101,-151.0,0.0001698,2]
[393372656,1762541441110,-151.0,0.0001698,2]
[393372657,1762541441119,-151.0,0.0001698,2]
[393372658,1762541441129,-151.0,0.0001698,2]
[393372659,1762541441141,-151.0,0.0001698,2]
[393372660,1762541441150,-151.0,0.0001698,2]
[393372661,1762541441159,-151.0,0.0001698,2]
[393372662,1762541441169,-151.0,0.0001698,2]
[393372663,1762541441178,-151.0,0.0001698,2]
[393372664,1762541441188,-151.0,0.0001698,2]
[393372665,1762541441197,-151.0,0.0001698,2]
[393372666,1762541441209,-151.0,0.0001698,2]
[393372667,1762541441218,-157.41710077,0.0001698,2]
[393372668,1762541441227,-151.0,0.0001698,2]
[393372669,1762541441237,-151.0,0.0001698,2]
[393372670,1762541441246,-151.0,0.0001698,2]
[393372671,1762541441256,-151.0,0.0001698,2]
[393372672,1762541441265,-151.0,0.0001698,2]
[393372673,1762541441274,-151.0,0.0001698,2]
[393372674,1762541441285,-151.0,0.0001698,2]
[393372675,1762541441295,-151.0,0.0001698,2]
[393372676,1762541441303,-151.0,0.0001698,2]
[393372677,1762541441313,-151.0,0.0001698,2]
[393372678,1762541441325,-3104.89,0.00016986,2]
[393372679,1762541441335,-319.99,0.00016989,2]
[393372680,1762541441344,-131616.34249303,0.0001699,2]
[393372681,1762541441353,-151.0,0.0001699,2]
[393372682,1762541441363,-241.33942772,0.0001699,2]
[393372683,1762541441372,-250.0,0.00017,2]
[393372684,1762541441381,-2850.35311745,0.00017,2]
[393372685,1762541441391,-500.0,0.00017001,2]
[393372686,1762541441400,-460.0,0.00017001,2]
[393372687,1762541441409,-500.0,0.00017001,2]
[393372688,1762541441419,-150.0,0.00017023,2]
[393372689,1762541441429,-2608.44808016,0.00017037,2]
[393372690,1762541441439,-347.64,0.00017045,2]
[393372691,1762541441450,-264.3120508,0.00017107,2]
[393372692,1762541441460,-444.0,0.0001715,2]
[393372693,1762541441469,-188.19324389,0.0001716,2]
[393372694,1762541441478,-2608.44808016,0.0001716,2]
[393372695,1762541441490,-200.0,0.00017224,2]
[393372696,1762541441499,-166.67,0.00017238,2]
[393372697,1762541441508,-319.99,0.00017263,2]
[393372698,1762541441520,-264.3120508,0.00017266,2]
[393372699,1762541441533,-5833.33334,0.0001728,2]
[393372700,1762541441542,-188.19324389,0.00017283,2]
[393372701,1762541441552,-2608.44808016,0.00017283,2]
[393372702,1762541441561,-444.0,0.00017309,2]
[393372703,1762541441572,-5833.33333,0.0001733,2]
[393372704,1762541441581,-5833.33333,0.0001733,2]
[393372705,1762541441591,-515.63484931,0.00017344,2]
[393372706,1762541441601,-444.0,0.00017345,2]
[393372707,1762541441611,-5833.33333,0.0001735,2]
[393372708,1762541441620,-444.0,0.00017402,2]
[393372709,1762541441629,-188.19324389,0.00017407,2]
[393372710,1762541441639,-2608.44808016,0.00017407,2]
[393372711,1762541441649,-5833.33334,0.0001741,2]
[393372712,1762541441658,-444.0,0.00017415,2]
[393372713,1762541441667,-444.0,0.00017415,2]
[393372714,1762541441677,-444.0,0.00017417,2]
[393372715,1762541441686,-1004.43139356,0.00017421,2]
[393372716,1762541441696,-500.0,0.00017421,2]
[393372717,1762541441705,-170.18333266,0.00017421,2]
[393372718,1762541441715,-1000.0,0.00017421,2]
[393372719,1762541441724,-1000.0,0.00017421,2]
[393372720,1762541441734,-1000.0,0.00017421,2]
[393372721,1762541441744,-264.3120508,0.00017424,2]
[393372722,1762541441753,-444.0,0.00017452,2]
[393372723,1762541441763,-5833.33333,0.0001747,2]
[393372724,1762541441772,-800.29344871,0.000175,2]
[393372725,1762541441781,-1000.0,0.000175,2]
[393372726,1762541441791,-1000.0,0.00017521,2]
[393372727,1762541441800,-644.81873748,0.00017521,2]
[393372728,1762541441810,-1000.0,0.00017521,2]
[393372729,1762541441821,-1096.14076774,0.00017521,2]
[393372730,1762541441831,-188.19324389,0.0001753,2]
[393372731,1762541441840,-2608.44808016,0.0001753,2]
[393372732,1762541441849,-165.58,0.00017532,2]
[393372733,1762541441859,-319.99,0.00017537,2]
[393372734,1762541441869,-10000.0,0.0001757,2]
[393372735,1762541441878,-444.0,0.00017572,2]
[393372736,1762541441888,-200.0,0.00017572,2]
[393372737,1762541441898,-264.3120508,0.00017583,2]
[393372738,1762541441908,-1000.0,0.000176,2]
[393372739,1762541441917,-893.85465609,0.00017621,2]
[393372740,1762541441927,-444.0,0.00017629,2]
[393372741,1762541441936,-444.0,0.00017649,2]
[393372742,1762541441946,-188.19324389,0.00017653,2]
[393372743,1762541441955,-2608.44808016,0.00017653,2]
[393372744,1762541441964,-444.0,0.00017659,2]
[393372745,1762541441974,-444.0,0.00017673,2]
[393372746,1762541441983,-221.84453216,0.00017684,2]
[393372747,1762541441996,-162.75475319,0.000177,2]
[393372748,1762541442005,-444.0,0.00017719,2]
[393372749,1762541442014,-3424.0,0.00017741,2]
[393372750,1762541442024,-1316.0,0.00017741,2]
[393372751,1762541442033,-607.0,0.00017741,2]
[393372752,1762541442042,-574.0,0.00017741,2]
[393372753,1762541442053,-1596.0,0.00017741,2]
[393372754,1762541442062,-820.0,0.00017741,2]
[393372755,1762541442071,-1188.0,0.00017741,2]
[393372756,1762541442080,-905.0,0.00017741,2]
[393372757,1762541442089,-1273.0,0.00017741,2]
[393372758,1762541442099,-812.0,0.00017741,2]
[393372759,1762541442109,-559.0,0.00017741,2]
[393372760,1762541442120,-2142.0,0.00017741,2]
[393372761,1762541442129,-6659.0,0.00017741,2]
[393372762,1762541442139,-6476.0,0.00017741,2]
[393372763,1762541442149,-3097.0,0.00017741,2]
[393372764,1762541442159,-264.3120508,0.00017741,2]
[393372765,1762541442168,-500.0,0.00017773,2]
[393372766,1762541442178,-500.0,0.00017773,2]
[393372767,1762541442187,-500.51641195,0.00017773,2]
[393372768,1762541442196,-501.10194398,0.00017773,2]
[393372769,1762541442206,-500.0,0.00017773,2]
[393372770,1762541442215,-504.25926664,0.00017773,2]
[393372771,1762541442224,-503.15659393,0.00017773,2]
[393372772,1762541442234,-500.0,0.00017773,2]
[393372773,1762541442244,-500.0,0.00017773,2]
[393372774,1762541442253,-481.92632213,0.00017773,2]
[393372775,1762541442263,-500.0,0.00017773,2]
[393372776,1762541442272,-500.0,0.00017773,2]
[393372777,1762541442282,-500.0,0.00017773,2]
[393372778,1762541442291,-500.0,0.00017773,2]
[393372779,1762541442300,-500.0,0.00017773,2]
[393372780,1762541442309,-500.0,0.00017773,2]
[393372781,1762541442318,-500.0,0.00017773,2]
[393372782,1762541442329,-500.0,0.00017773,2]
[393372783,1762541442338,-500.0,0.00017773,2]
[393372784,1762541442348,-500.0,0.00017773,2]
[393372785,1762541442357,-500.0,0.00017773,2]
[393372786,1762541442367,-516.40310031,0.00017773,2]
[393372787,1762541442376,-568.88126658,0.00017773,2]
[393372788,1762541442386,-500.0,0.00017773,2]
[393372789,1762541442395,-500.0,0.00017773,2]
[393372790,1762541442405,-188.19324389,0.00017777,2]
[393372791,1762541442414,-2608.44808016,0.00017777,2]
[393372792,1762541442423,-500.0,0.00017789,2]
[393372793,1762541442432,-361.67059225,0.0001779,2]
[393372794,1762541442445,-140728.49156723,0.000178,2]
[393372795,1762541442456,-500000.0,0.000178,2]
[393372797,1762541442465,-372.27294369,0.000178,2]
[393372798,1762541442474,-195.9456,0.000178,2]
[393372800,1762541442483,-319.99,0.00017811,2]
[393372801,1762541442494,-372.27294367,0.00017817,2]
[393372803,1762541442503,-372.27294367,0.00017833,2]
[393372805,1762541442512,-2822.154,0.00017839,2]
[393372807,1762541442523,-199.672,0.00017839,2]
[393372808,1762541442533,-372.27294367,0.0001785,2]
[393372809,1762541442543,-300.0,0.00017857,2]
[393372810,1762541442552,-321.47978243,0.00017857,2]
[393372811,1762541442562,-195.0,0.00017857,2]
[393372812,1762541442572,-250.0,0.00017857,2]
[393372813,1762541442582,-372.27294367,0.00017867,2]
[393372814,1762541442591,-151.0,0.0001787,2]
[393372815,1762541442600,-500.0,0.00017873,2]
[393372816,1762541442609,-500.0,0.00017873,2]
[393372817,1762541442618,-500.0,0.00017873,2]
[393372818,1762541442628,-502.98565705,0.00017873,2]
[393372819,1762541442637,-372.27294367,0.00017883,2]
[393372820,1762541442647,-150.0,0.00017889,2]
[393372821,1762541442656,-150.0,0.00017889,2]
[393372822,1762541442666,-150.0,0.00017889,2]
[393372823,1762541442676,-200.0,0.00017889,2]
[393372824,1762541442686,-150.0,0.00017889,2]
[393372825,1762541442695,-150.0,0.00017889,2]
[393372826,1762541442705,-200.0,0.00017889,2]
[393372827,1762541442714,-200.0,0.00017889,2]
[393372828,1762541442724,-500.0,0.00017889,2]
[393372829,1762541442747,-200.0,0.00017889,2]
[393372830,1762541442764,-200.0,0.00017889,2]
[393372831,1762541442774,-150.0,0.00017889,2]
[393372832,1762541442784,-500.0,0.00017889,2]
[393372833,1762541442793,-154.5547493,0.00017889,2]
[393372834,1762541442803,-200.08208835,0.00017889,2]
[393372835,1762541442812,-150.0,0.00017889,2]
[393372836,1762541442822,-509.0,0.00017889,2]
[393372837,1762541442832,-150.0,0.00017889,2]
[393372838,1762541442841,-454.0,0.00017889,2]
[393372839,1762541442851,-168.24179502,0.00017889,2]
[393372840,1762541442861,-150.0,0.0001789,2]
[393372841,1762541442871,-372.27294367,0.000179,2]
[393372842,1762541442880,-370.95810537,0.000179,2]
[393372843,1762541442889,-188.19324389,0.000179,2]
[393372844,1762541442899,-264.3120508,0.000179,2]
[393372845,1762541442908,-162.75475319,0.000179,2]
[393372846,1762541442917,-162.21113264,0.000179,2]
[393372847,1762541442927,-2608.44808016,0.000179,2]
[393372848,1762541442936,-503.58550355,0.00017968,2]
[393372849,1762541442946,-1500.0,0.00017968,2]
[393372850,1762541442955,-1500.0,0.00017968,2]
[393372851,1762541442964,-1000.0,0.00017978,2]
[393372852,1762541442973,-1000.0,0.00017978,2]
[393372853,1762541442982,-549.139,0.00017978,2]
[393372854,1762541442992,-361.67059225,0.0001799,2]
[393372855,1762541443001,-361.67059225,0.0001799,2]
[393372856,1762541443011,-151.0,0.00017997,2]
[393372857,1762541443020,-417.54862495,0.00017999,2]
[393372858,1762541443030,-300.0,0.00017999,2]
[393372859,1762541443039,-300.0,0.00017999,2]
[393372860,1762541443049,-300.0,0.00017999,2]
[393372861,1762541443059,-300.0,0.00017999,2]
[393372862,1762541443068,-666.0,0.00017999,2]
[393372863,1762541443080,-300.0,0.00017999,2]
[393372864,1762541443089,-666.0,0.00017999,2]
[393372865,1762541443099,-1321278.41751489,0.00018,2]
[393372866,1762541443109,-150.0,0.00018,2]
[393372867,1762541443118,-594.79762274,0.00018,2]
[393372868,1762541443127,-4008501.90126121,0.00018,2]
[393372877,1762541443341,-5669.12849389,0.00018,2]
[393372879,1762541443353,-323.25349816,0.00018,2]
[393372880,1762541443364,-1801.47668218,0.00018,2]
[393372881,1762541443384,-2238.51731303,0.00018,2]
[393372882,1762541443395,-812.23000005,0.00018,2]
[393372883,1762541443406,-2532.2076907,0.00018,2]
[393372884,1762541443418,-5666.74576733,0.00018,2]
[393372885,1762541443433,-2142.0,0.00018,2]
[393372886,1762541443451,-24463.95449009,0.00018,2]
[393372887,1762541443463,-49252.72460403,0.00018,2]
[393372888,1762541443475,-2587.85,0.00018,2]
[393372889,1762541443663,-1000.0,0.0001679,2]
[393372890,1762541443674,-480.78996212,0.00016913,2]
[393372891,1762541443685,-2210.079186,0.00016913,2]
[393372892,1762541443702,-1019.95047999,0.00016913,2]
[393372893,1762541443711,-181.0045708,0.00017773,2]
[393372894,1762541443721,-63.86852767,0.0001779,2]
[393372895,1762541443733,-87.13147233,0.0001779,2]
[393372896,1762541443743,-411135.83457538,0.00018,2]
[393372897,1762541443754,-171310.00000006,0.00018,2]
[393372898,1762541443769,-1038.58889233,0.00018,2]
[393372899,1762541443781,-11250.0,0.00018,2]
[393372905,1762541445995,-3710.81962811,0.00017037,2]
[393372906,1762541446007,-217.22277107,0.00017661,2]
[393372907,1762541446016,-875.23268409,0.00017787,2]
[393372908,1762541446026,-150.0,0.00017889,2]
[393372909,1762541446035,-695519.50626673,0.00018,2]
[393372910,1762541446046,-870.20119571,0.00018,2]
[393372911,1762541446131,-74304.56740284,0.00018,2]
[393372912,1762541446145,-2152.99164042,0.00018,2]
[393372913,1762541446157,-2377.8873204,0.00018,2]
[393372914,1762541446168,-6852.6,0.00018,2]
[393372915,1762541446240,-2451.393,0.00018,2]
[393372916,1762541446252,-1475.66373794,0.00018,2]
[393372917,1762541446263,-5000.0,0.00018,2]
[393372918,1762541446295,-1040.0,0.00018,2]
[393372919,1762541446306,-2893.80521485,0.00018,2]
[393372920,1762541446522,-9052.08353063,0.00018,2]
[393372921,1762541460029,185.57,0.00014036,2]
[393372935,1762541759894,500.0,0.00039029,120]
[393372936,1762541760152,500.0,0.00039029,120]
[393372937,1762541760585,189.95017879,0.00039029,120]
[393372938,1762541771658,484.28,0.00013699,2]
[393372942,1762541876950,193.43,0.00016095,2]
[393372944,1762542002108,40876.336637,0.00039029,45]
[393372956,1762542128318,151.0,0.00016134,2]
[393372957,1762542128919,151.0,0.00016134,2]
[393372958,1762542129518,151.0,0.00016134,2]
[393372959,1762542130191,151.0,0.00016134,2]
[393372960,1762542130811,151.0,0.00016134,2]
[393372961,1762542131444,151.0,0.00016134,2]
[393372962,1762542132608,151.0,0.00016134,2]
[393372963,1762542133287,151.0,0.00016134,2]
[393372964,1762542133894,151.0,0.00016134,2]
[393372965,1762542134514,151.0,0.00016134,2]
[393372966,1762542135246,151.0,0.00016134,2]
[393372967,1762542135632,151.0,0.00016134,2]
[393372968,1762542135859,151.0,0.00016134,2]
[393372969,1762542136281,151.0,0.00016134,2]
[393372970,1762542136491,151.0,0.00016134,2]
[393372971,1762542136925,151.0,0.00016134,2]
[393372972,1762542137089,151.0,0.00016134,2]
[393372973,1762542137607,151.0,0.00016134,2]
[393372974,1762542137912,151.0,0.00016134,2]
[393372975,1762542138210,151.0,0.00016134,2]
[393372976,1762542138423,151.0,0.00016134,2]
[393372978,1762542138869,151.0,0.00016134,2]
[393372979,1762542139083,151.0,0.00016134,2]
[393372980,1762542139514,151.0,0.00016134,2]